fUST/lending_fUST_20250808
["ID","MTS","AMOUNT","RATE_DAILY","PERIOD"]
[377940631,1754619045581,-460.0,0.00024656,2]
[377940632,1754619045590,-577.64,0.00024657,2]
[377940633,1754619045599,-460.0,0.00024657,2]
[377940634,1754619045608,-682.19,0.00024657,2]
[377940635,1754619045618,-672.61,0.00024657,2]
[377940636,1754619045627,-6906.89,0.00024657,2]
[377940637,1754619045636,-460.0,0.00024657,2]
[377940639,1754619045645,-603.58,0.00024657,2]
[377940641,1754619045654,-1213.93,0.00024657,2]
[377940643,1754619045664,-460.0,0.00024657,2]
[377940644,1754619045673,-460.0,0.00024657,2]
[377940646,1754619045686,-827.42,0.00024657,2]
[377940648,1754619045695,-200.0,0.00024658,15]
[377940649,1754619045704,-380.0,0.00024658,2]
[377940650,1754619045713,-239.813416,0.00024658,15]
[377940651,1754619045723,-500.0,0.00024658,2]
[377940652,1754619045733,-500.0,0.00024673,2]
[377940653,1754619045743,-500.0,0.00024673,2]
[377940654,1754619045752,-500.0,0.00024673,2]
[377940655,1754619045764,-500.0,0.00024673,2]
[377940656,1754619045773,-500.0,0.00024673,2]
[377940657,1754619045782,-500.0,0.00024673,2]
[377940658,1754619045792,-501.43415022,0.00024673,2]
[377940659,1754619045801,-500.0,0.00024673,2]
[377940660,1754619045810,-500.0,0.00024673,2]
[377940661,1754619045819,-500.0,0.00024673,2]
[377940662,1754619045828,-500.0,0.00024673,2]
[377940663,1754619045838,-500.0,0.00024673,2]
[377940664,1754619045848,-500.0,0.00024673,2]
[377940666,1754619045857,-500.0,0.00024673,2]
[377940668,1754619045867,-500.0,0.00024673,2]
[377940669,1754619045877,-218.313758,0.00024673,2]
[377940670,1754619045887,-500.0,0.00024673,2]
[377940671,1754619045896,-500.0,0.00024673,2]
[377940672,1754619045906,-505.60523896,0.00024673,2]
[377940673,1754619045916,-500.0,0.00024673,2]
[377940674,1754619045926,-500.0,0.00024673,2]
[377940675,1754619045935,-606.42121849,0.00024673,2]
[377940676,1754619045945,-500.0,0.00024673,2]
[377940677,1754619045955,-500.0,0.00024673,2]
[377940678,1754619045964,-553.38782005,0.00024673,2]
[377940679,1754619045973,-504.67373538,0.00024673,2]
[377940680,1754619045983,-500.0,0.00024673,2]
[377940681,1754619045992,-500.82577844,0.00024673,2]
[377940682,1754619046001,-500.0,0.00024673,2]
[377940683,1754619046010,-502.37381793,0.00024673,2]
[377940684,1754619046019,-500.0,0.00024673,2]
[377940685,1754619046028,-500.0,0.00024673,2]
[377940686,1754619046037,-2360.22366778,0.00024679,2]
[377940687,1754619046047,-151.0,0.000247,5]
[377940688,1754619046057,-151.0,0.000247,5]
[377940690,1754619046066,-200.67948028,0.00024749,2]
[377940692,1754619046075,-160.54832287,0.00024749,2]
[377940693,1754619046084,-196608.22362441,0.0002475,2]
[377940694,1754619046355,-151.0,0.00023137,2]
[377940695,1754619046365,-151.0,0.00023137,2]
[377940696,1754619046374,-78.36253887,0.00023285,7]
[377940697,1754619046398,-72.63746113,0.00023285,7]
[377940698,1754619046408,-151.0,0.00023835,7]
[377940699,1754619046417,-151.0,0.00024396,7]
[377940700,1754619046430,-110.12595623,0.0002465,7]
[377940701,1754619046536,-151.0,0.00023137,2]
[377940702,1754619046545,-151.0,0.00023137,2]
[377940703,1754619046554,-86.45000001,0.00023137,2]
[377940704,1754619121741,3000.0,0.00027999,30]
[377940708,1754619241671,24900.0,0.00021438,2]
[377940715,1754619601578,161.600369,0.00013699,2]
[377940799,1754619754738,2720.7,0.00030137,120]
[377940802,1754619853902,5213.57398154,0.00031924,60]
[377940813,1754620053167,291.60357425,0.00031924,30]
[377940884,1754620117484,150.94942753,0.0003,120]
[377940886,1754620124364,16625.22165882,0.00026,30]
[377940887,1754620124396,776.63236122,0.00031931,30]
[377940891,1754620165797,1847.0,0.00031931,30]
[377940958,1754620238155,24900.0,0.00021119,2]
[377940959,1754620238484,-809.2427752,0.00021816,2]
[377940960,1754620238495,-1200.0,0.00021916,2]
[377940961,1754620238507,-300.0,0.00021916,2]
[377940962,1754620238517,-1200.0,0.00021916,2]
[377940963,1754620238526,-460.0,0.00021917,2]
[377940964,1754620238536,-460.0,0.00021917,2]
[377940965,1754620238545,-460.0,0.00021917,2]
[377940966,1754620238554,-477.17239461,0.00021917,2]
[377940967,1754620238564,-463.7522725,0.00021917,2]
[377940968,1754620238574,-460.0,0.00021917,2]
[377940969,1754620238584,-500.85940761,0.00021967,2]
[377940970,1754620238594,-2065.19570936,0.0002209,2]
[377940971,1754620238604,-1832.37405296,0.00022091,2]
[377940972,1754620238614,-460.0,0.00022188,2]
[377940973,1754620238623,-476.40932143,0.00022188,2]
[377940974,1754620238634,-462.71981616,0.00022189,2]
[377940975,1754620238643,-460.0,0.00022189,2]
[377940976,1754620238652,-479.91940395,0.00022189,2]
[377940977,1754620238662,-579.34,0.00022189,2]
[377940978,1754620238671,-460.0,0.00022189,2]
[377940979,1754620238680,-514.01,0.00022189,2]
[377940980,1754620238689,-460.0,0.00022189,2]
[377940981,1754620238698,-723.99,0.00022189,2]
[377940982,1754620238708,-460.0,0.00022189,2]
[377940983,1754620238717,-460.0,0.00022189,2]
[377940984,1754620238726,-960.88,0.00022189,2]
[377940985,1754620238737,-460.0,0.00022189,2]
[377940986,1754620238746,-596.91,0.00022189,2]
[377940987,1754620238755,-473.78140685,0.00022189,2]
[377940988,1754620238765,-468.7555052,0.00022189,2]
[377940989,1754620238775,-473.79923437,0.00022189,2]
[377940990,1754620238784,-460.0,0.00022189,2]
[377940991,1754620238999,-460.0,0.00022189,2]
[377940992,1754620239009,-460.0,0.00022189,2]
[377940993,1754620239018,-6043.53,0.00022189,2]
[377940994,1754620239027,-460.0,0.00022189,2]
[377940995,1754620239037,-460.0,0.00022189,2]
[377940996,1754620239046,-460.0,0.00022189,2]
[377940997,1754620239055,-460.0,0.00022189,2]
[377940998,1754620239066,-460.0,0.00022189,2]
[377940999,1754620239076,-460.0,0.00022189,2]
[377941000,1754620239085,-460.0,0.00022189,2]
[377941001,1754620239095,-460.0,0.00022189,2]
[377941002,1754620239105,-460.0,0.00022189,2]
[377941003,1754620239114,-787.14,0.00022189,2]
[377941004,1754620239124,-460.0,0.0002219,2]
[377941005,1754620239133,-464.76193236,0.0002219,2]
[377941006,1754620239146,-961.03,0.0002219,2]
[377941007,1754620239156,-515.21,0.0002219,2]
[377941008,1754620239166,-460.0,0.0002219,2]
[377941009,1754620239175,-528.13,0.0002219,2]
[377941010,1754620239183,-460.0,0.0002219,2]
[377941011,1754620239194,-460.0,0.0002219,2]
[377941012,1754620239203,-625.55,0.0002219,2]
[377941013,1754620239420,-730.95,0.0002219,2]
[377941014,1754620239430,-460.0,0.0002219,2]
[377941015,1754620239440,-477.29632643,0.0002219,2]
[377941016,1754620239450,-460.0,0.0002219,2]
[377941017,1754620239459,-460.0,0.00022191,2]
[377941018,1754620239469,-460.0,0.00022191,2]
[377941019,1754620239478,-460.0,0.00022191,2]
[377941020,1754620239488,-460.0,0.00022191,2]
[377941021,1754620239498,-150.59680682,0.00022213,7]
[377941022,1754620239508,-561.43399631,0.00022356,2]
[377941023,1754620239519,-460.0,0.00022462,2]
[377941024,1754620239529,-460.0,0.00022463,2]
[377941025,1754620239539,-579.34,0.00022463,2]
[377941026,1754620239548,-514.01,0.00022463,2]
[377941027,1754620239558,-460.0,0.00022463,2]
[377941028,1754620239568,-723.99,0.00022463,2]
[377941029,1754620239578,-460.0,0.00022463,2]
[377941030,1754620239587,-460.0,0.00022463,2]
[377941031,1754620239597,-960.88,0.00022463,2]
[377941032,1754620239606,-244.48136995,0.00022463,2]
[377941033,1754620239615,-596.91,0.00022463,2]
[377941034,1754620239625,-460.0,0.00022463,2]
[377941035,1754620239634,-460.0,0.00022463,2]
[377941036,1754620239643,-6043.53,0.00022463,2]
[377941037,1754620239653,-460.0,0.00022463,2]
[377941038,1754620239662,-460.0,0.00022463,2]
[377941039,1754620239672,-460.0,0.00022463,2]
[377941040,1754620239681,-460.0,0.00022463,2]
[377941041,1754620239690,-460.0,0.00022463,2]
[377941042,1754620239700,-584.53350668,0.00022463,2]
[377941043,1754620239709,-460.0,0.00022463,2]
[377941044,1754620239718,-254.84,0.00022463,2]
[377941045,1754620239727,-787.14,0.00022463,2]
[377941046,1754620239737,-478.21732613,0.00022464,2]
[377941047,1754620239746,-961.03,0.00022464,2]
[377941048,1754620239755,-515.21,0.00022464,2]
[377941049,1754620239764,-460.0,0.00022464,2]
[377941050,1754620239774,-528.13,0.00022464,2]
[377941051,1754620239783,-460.0,0.00022464,2]
[377941052,1754620239792,-625.55,0.00022464,2]
[377941054,1754620239802,-730.95,0.00022464,2]
[377941055,1754620239812,-460.0,0.00022464,2]
[377941056,1754620239822,-460.0,0.00022464,2]
[377941057,1754620239830,-357.93,0.00022465,2]
[377941058,1754620239840,-460.0,0.00022465,2]
[377941059,1754620239849,-495.1726709,0.00022465,2]
[377941060,1754620239859,-460.0,0.00022465,2]
[377941061,1754620239869,-1098.08418753,0.000227,2]
[377941062,1754620239878,-163.20941582,0.00022728,2]
[377941063,1754620239887,-412.04,0.00022729,3]
[377941064,1754620239896,-500.0,0.00022733,2]
[377941065,1754620239906,-460.0,0.00022736,2]
[377941066,1754620239915,-460.0,0.00022737,2]
[377941067,1754620239924,-579.34,0.00022737,2]
[377941068,1754620239933,-514.01,0.00022737,2]
[377941069,1754620239943,-460.0,0.00022737,2]
[377941070,1754620239952,-723.99,0.00022737,2]
[377941071,1754620239961,-460.0,0.00022737,2]
[377941072,1754620239970,-460.0,0.00022737,2]
[377941073,1754620239979,-960.88,0.00022737,2]
[377941074,1754620239988,-596.91,0.00022737,2]
[377941075,1754620239997,-467.34193365,0.00022737,2]
[377941076,1754620240006,-460.0,0.00022737,2]
[377941077,1754620240016,-6043.53,0.00022737,2]
[377941078,1754620240025,-460.0,0.00022737,2]
[377941079,1754620240034,-460.0,0.00022737,2]
[377941080,1754620240043,-460.0,0.00022737,2]
[377941081,1754620240052,-460.0,0.00022737,2]
[377941082,1754620240067,-460.0,0.00022737,2]
[377941083,1754620240076,-460.0,0.00022737,2]
[377941084,1754620240086,-787.14,0.00022737,2]
[377941085,1754620240095,-961.03,0.00022738,2]
[377941086,1754620240105,-515.21,0.00022738,2]
[377941087,1754620240115,-460.0,0.00022738,2]
[377941088,1754620240124,-528.13,0.00022738,2]
[377941089,1754620240136,-460.0,0.00022738,2]
[377941090,1754620240150,-625.55,0.00022738,2]
[377941091,1754620240159,-730.95,0.00022738,2]
[377941093,1754620240169,-460.0,0.00022738,2]
[377941095,1754620240178,-460.0,0.00022738,2]
[377941097,1754620240187,-260.32,0.00022739,2]
[377941099,1754620240197,-151.0,0.00022739,2]
[377941101,1754620240206,-460.0,0.00022739,2]
[377941103,1754620240215,-221.47,0.00022745,10]
[377941105,1754620240225,-215.36146706,0.00022755,2]
[377941106,1754620240234,-160.0,0.00022755,2]
[377941108,1754620240244,-160.0,0.00022755,2]
[377941110,1754620240253,-160.0,0.00022755,2]
[377941111,1754620240262,-160.0,0.00022755,2]
[377941112,1754620240271,-160.0,0.00022755,2]
[377941113,1754620240280,-312.16666667,0.00022755,2]
[377941114,1754620240290,-461.45099301,0.00022755,2]
[377941115,1754620240300,-12663.41139009,0.00022755,2]
[377941116,1754620240309,-231.87430077,0.00022755,2]
[377941117,1754620240318,-216.5651299,0.00022755,2]
[377941118,1754620240327,-160.0,0.00022755,2]
[377941119,1754620240337,-842.78739015,0.00022755,2]
[377941120,1754620240346,-527.68033864,0.00022755,2]
[377941121,1754620240355,-160.0,0.00022757,2]
[377941122,1754620240364,-160.0,0.00022757,2]
[377941123,1754620240375,-160.0,0.00022757,2]
[377941124,1754620240385,-2000.0,0.000228,2]
[377941125,1754620240394,-2000.0,0.000228,3]
[377941126,1754620240404,-2000.0,0.000228,4]
[377941127,1754620240414,-2000.0,0.000228,5]
[377941128,1754620240422,-626.80565026,0.00022807,2]
[377941129,1754620240431,-14713.35602589,0.00022807,2]
[377941130,1754620240440,-215.32,0.00022858,2]
[377941131,1754620240449,-500.0,0.00022873,2]
[377941132,1754620240458,-501.37647325,0.00022873,2]
[377941133,1754620240468,-358.14080288,0.00022873,2]
[377941134,1754620240477,-500.0,0.00022873,2]
[377941135,1754620240486,-502.62412246,0.00022873,2]
[377941136,1754620240495,-505.42808329,0.00022873,2]
[377941137,1754620240505,-258.68912709,0.00022873,2]
[377941138,1754620240514,-500.0,0.00022873,2]
[377941139,1754620240523,-167.40743538,0.00022873,2]
[377941140,1754620240532,-500.0,0.00022873,2]
[377941141,1754620240541,-500.0,0.00022873,2]
[377941142,1754620240550,-253.93567524,0.00022873,2]
[377941144,1754620240560,-500.0,0.00022873,2]
[377941146,1754620240569,-500.0,0.00022873,2]
[377941148,1754620240579,-200.48634767,0.00022873,2]
[377941150,1754620240588,-503.23686665,0.00022873,2]
[377941152,1754620240597,-502.91019105,0.00022873,2]
[377941154,1754620240607,-219230.48622083,0.000229,7]
[377941156,1754620240617,-12663.41139009,0.000229,7]
[377941158,1754620240626,-504.27403933,0.00022907,2]
[377941160,1754620240635,-305.35423632,0.00022931,2]
[377941162,1754620240644,-500.0,0.00022957,2]
[377941164,1754620240653,-500.0,0.00022965,2]
[377941166,1754620240662,-500.0,0.00022986,2]
[377941168,1754620240671,-296.31412715,0.0002299,2]
[377941170,1754620240681,-193.86855023,0.00023,2]
[377941172,1754620240691,-160.0,0.00023,2]
[377941174,1754620240700,-1345.21929793,0.00023,2]
[377941176,1754620240709,-1339.95733894,0.00023,2]
[377941178,1754620240718,-460.0,0.0002301,2]
[377941180,1754620240728,-460.0,0.00023011,2]
[377941182,1754620240737,-579.34,0.00023011,2]
[377941184,1754620240746,-514.01,0.00023011,2]
[377941186,1754620240754,-460.0,0.00023011,2]
[377941188,1754620240763,-723.99,0.00023011,2]
[377941190,1754620240773,-460.0,0.00023011,2]
[377941192,1754620240782,-460.0,0.00023011,2]
[377941194,1754620240791,-960.88,0.00023011,2]
[377941196,1754620240800,-596.91,0.00023011,2]
[377941198,1754620240809,-460.0,0.00023011,2]
[377941200,1754620240818,-6043.53,0.00023011,2]
[377941202,1754620240827,-460.0,0.00023011,2]
[377941204,1754620240837,-169.21974291,0.00023011,2]
[377941206,1754620240846,-460.0,0.00023011,2]
[377941208,1754620240856,-460.0,0.00023011,2]
[377941210,1754620240865,-460.0,0.00023011,2]
[377941212,1754620240875,-460.0,0.00023011,2]
[377941214,1754620240885,-787.14,0.00023011,2]
[377941216,1754620240895,-961.03,0.00023012,2]
[377941218,1754620240904,-515.21,0.00023012,2]
[377941220,1754620240913,-460.0,0.00023012,2]
[377941222,1754620240923,-528.13,0.00023012,2]
[377941225,1754620240933,-460.0,0.00023012,2]
[377941227,1754620240942,-200.0,0.00023012,15]
[377941229,1754620240952,-300.0,0.00023012,15]
[377941231,1754620240962,-625.55,0.00023012,2]
[377941233,1754620240971,-730.95,0.00023012,2]
[377941235,1754620240980,-468.25071733,0.00023012,2]
[377941237,1754620240990,-460.0,0.00023012,2]
[377941238,1754620240999,-201.82044498,0.00023013,2]
[377941241,1754620241010,-460.0,0.00023013,2]
[377941243,1754620241019,-500.0,0.00023017,2]
[377941245,1754620241029,-305.80391964,0.00023068,2]
[377941247,1754620241038,-500.0,0.00023123,2]
[377941249,1754620241047,-151.0,0.00023137,2]
[377941250,1754620241056,-300.0,0.00023137,2]
[377941252,1754620241068,-151.0,0.00023137,2]
[377941254,1754620241077,-300.0,0.00023137,2]
[377941256,1754620241086,-151.0,0.00023137,2]
[377941258,1754620241096,-336.35825086,0.00023137,2]
[377941260,1754620241106,-151.0,0.00023137,2]
[377941262,1754620241115,-300.0,0.00023137,2]
[377941264,1754620241123,-151.0,0.00023137,2]
[377941266,1754620241132,-300.0,0.00023137,2]
[377941268,1754620241142,-151.0,0.00023137,2]
[377941270,1754620241154,-151.0,0.00023137,2]
[377941272,1754620241163,-300.0,0.00023137,2]
[377941274,1754620241172,-151.0,0.00023137,2]
[377941276,1754620241182,-300.0,0.00023137,2]
[377941278,1754620241191,-151.0,0.00023137,2]
[377941280,1754620241200,-151.0,0.00023137,2]
[377941282,1754620241209,-300.0,0.00023137,2]
[377941284,1754620241218,-151.0,0.00023137,2]
[377941286,1754620241228,-300.0,0.00023137,2]
[377941288,1754620241237,-151.0,0.00023137,2]
[377941290,1754620241246,-151.0,0.00023137,2]
[377941292,1754620241255,-300.0,0.00023137,2]
[377941294,1754620241264,-151.0,0.00023137,2]
[377941296,1754620241273,-151.0,0.00023137,2]
[377941298,1754620241282,-300.0,0.00023137,2]
[377941300,1754620241292,-151.0,0.00023137,2]
[377941302,1754620241301,-151.0,0.00023137,2]
[377941304,1754620241310,-305.90902305,0.00023137,2]
[377941306,1754620241320,-151.0,0.00023137,2]
[377941308,1754620241330,-151.0,0.00023137,2]
[377941310,1754620241339,-151.0,0.00023137,2]
[377941312,1754620241349,-151.0,0.00023137,2]
[377941314,1754620241358,-151.0,0.00023137,2]
[377941316,1754620241367,-183.05828913,0.00023137,2]
[377941318,1754620241377,-1000.0,0.00023137,2]
[377941320,1754620241386,-1000.0,0.00023137,2]
[377941322,1754620241395,-1000.0,0.00023137,2]
[377941324,1754620241404,-1000.0,0.00023137,2]
[377941326,1754620241413,-1000.0,0.00023137,2]
[377941328,1754620241422,-1000.0,0.00023137,2]
[377941330,1754620241432,-1000.0,0.00023137,2]
[377941332,1754620241442,-1000.0,0.00023137,2]
[377941334,1754620241451,-151.0,0.00023137,2]
[377941336,1754620241459,-151.0,0.00023137,2]
[377941338,1754620241469,-1000.0,0.00023137,2]
[377941340,1754620241478,-1000.0,0.00023137,2]
[377941342,1754620241487,-151.0,0.00023137,2]
[377941344,1754620241496,-1000.0,0.00023137,2]
[377941346,1754620241506,-151.0,0.00023137,2]
[377941348,1754620241515,-151.0,0.00023137,2]
[377941350,1754620241523,-151.0,0.00023137,2]
[377941352,1754620241532,-151.0,0.00023137,2]
[377941354,1754620241541,-151.0,0.00023137,2]
[377941355,1754620241551,-160.0,0.00023158,2]
[377941357,1754620241560,-150.59680682,0.00023223,7]
[377941359,1754620241569,-502.89563406,0.00023281,2]
[377941361,1754620241578,-460.0,0.00023284,2]
[377941363,1754620241590,-151.0,0.00023285,7]
[377941365,1754620241599,-460.0,0.00023285,2]
[377941367,1754620241608,-579.34,0.00023285,2]
[377941369,1754620241618,-514.01,0.00023285,2]
[377941372,1754620241627,-460.0,0.00023285,2]
[377941374,1754620241637,-723.99,0.00023285,2]
[377941375,1754620241646,-460.0,0.00023285,2]
[377941377,1754620241656,-279.36066523,0.00023285,2]
[377941379,1754620241664,-960.88,0.00023285,2]
[377941381,1754620241674,-596.91,0.00023285,2]
[377941383,1754620241683,-460.0,0.00023285,2]
[377941385,1754620241692,-6043.53,0.00023285,2]
[377941387,1754620241702,-460.0,0.00023285,2]
[377941389,1754620241711,-161.80202445,0.00023285,2]
[377941391,1754620241720,-460.0,0.00023285,2]
[377941393,1754620241730,-460.0,0.00023285,2]
[377941395,1754620241739,-460.0,0.00023285,2]
[377941397,1754620241748,-787.14,0.00023285,2]
[377941399,1754620241758,-961.03,0.00023286,2]
[377941401,1754620241767,-515.21,0.00023286,2]
[377941403,1754620241776,-460.0,0.00023286,2]
[377941405,1754620241785,-528.13,0.00023286,2]
[377941407,1754620241795,-460.0,0.00023286,2]
[377941409,1754620241803,-625.55,0.00023286,2]
[377941411,1754620241813,-730.95,0.00023286,2]
[377941413,1754620241822,-460.0,0.00023286,2]
[377941415,1754620241831,-460.0,0.00023287,2]
[377941417,1754620241840,-626.80565022,0.00023324,2]
[377941419,1754620241850,-877.1,0.00023327,2]
[377941421,1754620241859,-151.0,0.000234,8]
[377941423,1754620241868,-1000.0,0.00023421,2]
[377941425,1754620241878,-1000.0,0.00023421,2]
[377941427,1754620241887,-233.77652006,0.00023421,2]
[377941429,1754620241897,-436.73348259,0.00023421,2]
[377941431,1754620241906,-1000.0,0.00023421,2]
[377941433,1754620241915,-1000.0,0.00023421,2]
[377941435,1754620241924,-1000.0,0.00023421,2]
[377941437,1754620241933,-2065.1957093,0.00023482,2]
[377941439,1754620241943,-1000.0,0.00023505,2]
[377941441,1754620241952,-1000.0,0.00023513,2]
[377941443,1754620241961,-155.53557546,0.00023534,2]
[377941445,1754620241970,-460.0,0.00023558,2]
[377941447,1754620241979,-720.63366817,0.00023558,2]
[377941449,1754620241988,-188.59162877,0.00023558,2]
[377941451,1754620241998,-720.63366817,0.00023558,2]
[377941453,1754620242006,-720.63366817,0.00023558,2]
[377941455,1754620242015,-720.63366817,0.00023558,2]
[377941457,1754620242025,-720.63366817,0.00023558,2]
[377941459,1754620242034,-720.63366817,0.00023558,2]
[377941461,1754620242043,-720.63366817,0.00023558,2]
[377941463,1754620242052,-720.63366817,0.00023558,2]
[377941465,1754620242062,-720.63366817,0.00023558,2]
[377941467,1754620242074,-720.63366817,0.00023558,2]
[377941469,1754620242083,-720.63366817,0.00023558,2]
[377941471,1754620242093,-720.63366817,0.00023558,2]
[377941473,1754620242102,-720.63366817,0.00023558,2]
[377941475,1754620242113,-720.63366817,0.00023558,2]
[377941477,1754620242122,-720.63366817,0.00023558,2]
[377941479,1754620242131,-720.63366817,0.00023558,2]
[377941481,1754620242142,-720.63366817,0.00023558,2]
[377941483,1754620242152,-720.63366817,0.00023558,2]
[377941485,1754620242162,-460.0,0.00023559,2]
[377941487,1754620242171,-579.34,0.00023559,2]
[377941489,1754620242181,-514.01,0.00023559,2]
[377941491,1754620242190,-460.0,0.00023559,2]
[377941493,1754620242199,-723.99,0.00023559,2]
[377941495,1754620242208,-460.0,0.00023559,2]
[377941497,1754620242217,-960.88,0.00023559,2]
[377941498,1754620242226,-596.91,0.00023559,2]
[377941499,1754620242235,-460.0,0.00023559,2]
[377941500,1754620242244,-6043.53,0.00023559,2]
[377941501,1754620242254,-460.0,0.00023559,2]
[377941502,1754620242263,-460.0,0.00023559,2]
[377941503,1754620242272,-460.0,0.00023559,2]
[377941504,1754620242282,-460.0,0.00023559,2]
[377941505,1754620242291,-787.14,0.00023559,2]
[377941506,1754620242301,-961.03,0.0002356,2]
[377941507,1754620242310,-515.21,0.0002356,2]
[377941508,1754620242319,-460.0,0.0002356,2]
[377941509,1754620242329,-528.13,0.0002356,2]
[377941510,1754620242338,-460.0,0.0002356,2]
[377941511,1754620242347,-625.55,0.0002356,2]
[377941512,1754620242356,-730.95,0.0002356,2]
[377941513,1754620242365,-460.0,0.0002356,2]
[377941514,1754620242374,-279.66854893,0.00023561,2]
[377941515,1754620242383,-460.0,0.00023561,2]
[377941516,1754620242393,-226.7695873,0.00023565,2]
[377941517,1754620242402,-151.0,0.000236,8]
[377941519,1754620242412,-877.1,0.00023674,2]
[377941521,1754620242420,-260.0,0.00023706,2]
[377941523,1754620242430,-200.0,0.00023736,29]
[377941525,1754620242439,-2000.0,0.000238,6]
[377941527,1754620242447,-2000.0,0.000238,7]
[377941529,1754620242457,-151.0,0.000238,6]
[377941531,1754620242466,-151.911361,0.00023803,7]
[377941533,1754620242475,-420.0,0.00023817,2]
[377941534,1754620242484,-14713.35602589,0.00023818,2]
[377941537,1754620242493,-460.0,0.00023832,2]
[377941538,1754620242503,-460.0,0.00023833,2]
[377941540,1754620242512,-579.34,0.00023833,2]
[377941543,1754620242522,-514.01,0.00023833,2]
[377941545,1754620242531,-293.01371935,0.00023833,2]
[377941547,1754620242541,-723.99,0.00023833,2]
[377941549,1754620242551,-460.0,0.00023833,2]
[377941550,1754620242560,-960.88,0.00023833,2]
[377941552,1754620242569,-596.91,0.00023833,2]
[377941554,1754620242578,-460.0,0.00023833,2]
[377941569,1754620242588,-6043.53,0.00023833,2]
[377941571,1754620242717,-460.0,0.00023833,2]
[377941573,1754620242727,-460.0,0.00023833,2]
[377941575,1754620242736,-460.0,0.00023833,2]
[377941577,1754620242745,-460.0,0.00023833,2]
[377941579,1754620242754,-787.14,0.00023833,2]
[377941581,1754620242764,-961.03,0.00023834,2]
[377941583,1754620242773,-515.21,0.00023834,2]
[377941585,1754620242782,-460.0,0.00023834,2]
[377941587,1754620242791,-528.13,0.00023834,2]
[377941589,1754620242801,-460.0,0.00023834,2]
[377941591,1754620242810,-730.95,0.00023834,2]
[377941593,1754620242819,-625.55,0.00023834,2]
[377941595,1754620242829,-460.0,0.00023834,2]
[377941597,1754620242838,-460.0,0.00023835,2]
[377941599,1754620242847,-626.80565022,0.0002384,2]
[377941601,1754620242856,-239.813416,0.00023885,2]
[377941603,1754620242866,-151.0,0.000239,8]
[377941605,1754620242875,-239.813416,0.000239,8]
[377941607,1754620242884,-600.95356518,0.00023904,2]
[377941609,1754620242894,-1680.0,0.00023929,2]
[377941611,1754620242903,-239.813416,0.00023938,8]
[377941613,1754620242912,-150.0,0.00023955,2]
[377941615,1754620242921,-1011.77739619,0.00023968,2]
[377941617,1754620242930,-1500.0,0.00023968,2]
[377941619,1754620242939,-1500.0,0.00023968,2]
[377941621,1754620242949,-512.00691931,0.00023968,2]
[377941624,1754620242958,-505.5391513,0.00023968,2]
[377941627,1754620242968,-239.813416,0.00023975,8]
[377941630,1754620242977,-1699.4022888,0.00024,2]
[377941632,1754620242987,-322.96810668,0.00024,2]
[377941634,1754620242996,-455.4614438,0.00024,2]
[377941636,1754620243005,-1024.19302627,0.00024,7]
[377941638,1754620243015,-216.5651299,0.00024,7]